bitfinex-derivatives/quotes_ETHF0:USTF0_20250417
["timestamp","ask_amount","ask_price","bid_price","bid_amount"]
[1744900036993,6.17720897,1580.6,1580.5,43.87145]
[1744900037186,7.44277897,1580.6,1580.5,43.87145]
[1744900037397,9.38687897,1580.6,1580.5,40.8]
[1744900037580,1.26573,1580.4,1580.3,5.1116]
[1744900037785,7.02009,1580.5,1580.3,1.9038]
[1744900037993,8.29369,1580.5,1580.3,43.96957]
[1744900038189,1.26573,1580.4,1580.3,40.8]
[1744900038394,3.20983,1580.4,1580.3,42.7038]
[1744900038595,3.20983,1580.4,1580.3,1.9038]
[1744900039393,1.9441,1580.4,1580.3,1.9038]
[1744900039591,1.26597,1580.1,1580.0,0.00949968]
[1744900039893,4.47377096,1580.1,1580.0,0.00949968]
[1744900040188,9.47377096,1580.1,1580.0,0.00949968]
[1744900040393,13.39827096,1580.1,1580.0,0.00949968]
[1744900041794,7.13230096,1580.1,1580.0,1.27554968]
[1744900041993,8.39827096,1580.1,1580.0,0.00949968]
[1744900043492,8.39827096,1580.1,1580.0,1.27554968]
[1744900043896,8.39827096,1580.1,1580.0,0.00949968]
[1744900045086,16.82630096,1580.1,1579.6,3.7887]
[1744900045288,1.26629,1579.7,1579.6,1.26629]
[1744900045497,4.47405,1579.8,1579.7,1.26629]
[1744900045899,4.47407,1579.8,1579.7,1.26629]
[1744900047094,4.47407,1579.8,1579.6,3.26753968]
[1744900047298,1.26629,1579.7,1579.6,3.26753968]
[1744900048800,1.26629,1579.7,1579.6,3.26756968]
[1744900049703,1.26629,1579.7,1579.6,2.00119968]
[1744900051098,1.26629,1579.7,1579.6,3.26756968]
[1744900051401,1.26629,1579.7,1579.6,2.00119968]
[1744900052302,1.26629,1579.7,1579.6,3.26756968]
[1744900052705,1.26629,1579.7,1579.6,2.00119968]
[1744900053605,1.26629,1579.7,1579.6,3.26756968]
[1744900053901,1.26629,1579.7,1579.6,2.00119968]
[1744900054501,1.26629,1579.7,1579.6,3.26756968]
[1744900054898,1.26629,1579.7,1579.6,3.26748968]
[1744900055205,1.26629096,1579.7,1579.6,3.26748968]
[1744900055908,9.6e-07,1579.7,1579.6,3.26748968]
[1744900056105,9.6e-07,1579.7,1579.6,10.07158968]
[1744900057705,1.26629096,1579.7,1579.6,0.00949968]
[1744900058003,5.09899096,1579.7,1579.6,0.00949968]
[1744900060507,8.30679096,1579.7,1579.6,1.27586968]
[1744900060703,9.6e-07,1579.7,1579.6,1.27586968]
[1744900061007,9.6e-07,1579.8,1579.7,1.26629]
[1744900061404,9.6e-07,1579.8,1579.7,7.03279]
[1744900061915,1.26621096,1579.8,1579.7,7.03279]
[1744900062415,3.10941096,1579.8,1579.7,3.13299]
[1744900062611,3.10941096,1579.8,1579.7,1.26629]
[1744900062817,1.26629,1579.7,1579.6,1.27579968]
[1744900063119,6.31729,1579.7,1579.6,1.27579968]
[1744900063316,11.31729096,1579.7,1579.6,0.00949968]
[1744900063508,6.33265,1579.4,1578.7,8.5106]
[1744900063709,1.26709,1578.7,1578.6,1.26711]
[1744900063905,1.26709,1578.7,1578.6,1.8667]
[1744900064110,1.26707,1578.8,1578.6,3.13383]
[1744900064311,3.16773,1578.7,1578.3,1.26739]
[1744900064511,3.2078,1578.6,1578.5,1.26725]
[1744900064721,3.2078,1578.6,1578.5,1.27674968]
[1744900065121,3.2078,1578.6,1578.5,3.20154968]
[1744900065511,9.47497096,1578.6,1578.5,0.00949968]
[1744900065712,1.26741,1578.3,1578.2,8.32854118]
[1744900065916,9.16821,1578.3,1578.2,8.32854118]
[1744900066521,9.16821,1578.3,1578.1,3.19235]
[1744900066718,1.8719,1578.2,1578.1,3.19235]
[1744900066920,1.8719,1578.2,1578.0,1.2676]
[1744900067122,1.8719,1578.2,1578.1,1.26757]
[1744900067328,3.13941,1578.2,1578.0,3.19239]
[1744900067522,3.2078,1578.1,1578.0,3.19239]
[1744900068819,3.2078,1578.1,1578.0,1.9248]
[1744900069021,3.2078,1578.1,1578.0,3.19245]
[1744900069224,3.2078,1578.1,1578.0,1.9248]
[1744900069527,3.2078,1578.1,1578.0,3.19245]
[1744900069725,3.2078,1578.1,1578.0,1.9248]
[1744900070214,6.47627,1578.1,1578.0,1.9248]
[1744900070417,5.2087,1578.1,1578.0,1.9248]
[1744900070617,6.47627,1578.1,1578.0,1.9248]
[1744900070819,5.2087,1578.1,1578.0,3.19245]
[1744900071218,3.2078,1578.1,1578.0,3.19245]
[1744900073431,3.2078,1578.1,1577.8,1.8227]
[1744900073628,3.2078,1578.1,1577.6,1.26794]
[1744900073629,1.26786,1577.8,1577.6,1.26794]
[1744900073817,1.26786,1577.8,1577.7,1.8576]
[1744900074133,4.47563,1577.8,1577.5,3.25761]
[1744900074428,3.2078,1577.8,1577.7,1.26789]
[1744900074631,3.2078,1577.8,1577.7,42.06789]
[1744900075924,3.21729968,1578.1,1578.0,1.26765]
[1744900076123,3.2078,1578.5,1578.1,3.16877]
[1744900076429,6.9716,1578.5,1578.4,1.26733]
[1744900076817,6.9716,1578.5,1578.1,3.16877]
[1744900077025,3.2078,1578.3,1578.1,3.16893]
[1744900077228,3.2078,1578.3,1578.2,3.16209]
[1744900077529,0.00949968,1578.5,1578.4,1.26733]
[1744900077831,0.00949968,1578.5,1578.4,4.47513]
[1744900078031,0.00949968,1578.5,1578.4,9.47513]
[1744900078225,0.00949968,1578.5,1578.4,6.26733]
[1744900078428,0.00949968,1578.5,1578.4,13.17723]
[1744900078826,9.68e-06,1578.5,1578.4,13.17723]
[1744900080422,9.68e-06,1578.5,1578.4,16.55970638]
[1744900080630,9.68e-06,1578.5,1578.4,7.85793]
[1744900080931,3.20780968,1578.5,1578.4,1.26733]
[1744900081126,3.20780968,1578.5,1578.3,1.26735]
[1744900081326,1.9267,1578.4,1578.2,1.26743]
[1744900081526,1.9267,1578.4,1578.3,1.26741]
[1744900082133,1.9267,1578.4,1578.2,1.97]
[1744900082331,1.9267,1578.4,1578.3,1.26741]
[1744900085831,3.19403,1578.4,1578.2,1.26742]
[1744900086033,5.0192,1578.3,1578.1,0.00949968]
[1744900086235,1.9286,1578.2,1578.1,1.27706968]
[1744900086929,3.19609096,1578.2,1578.1,0.00949968]
[1744900087131,3.19609096,1578.2,1578.1,1.27706968]
[1744900087331,1.92860096,1578.2,1578.1,1.27706968]
[1744900087537,3.19609096,1578.2,1578.1,1.27706968]
[1744900088237,3.19609096,1578.2,1578.1,0.00949968]
[1744900088835,8.19609096,1578.2,1578.1,0.00949968]
[1744900089932,1.26773,1577.9,1577.8,1.26778]
[1744900090131,3.20780096,1577.9,1577.8,1.26778]
[1744900090533,4.47553096,1577.9,1577.8,1.26778]
[1744900090736,8.24853096,1577.9,1577.8,1.26778]
[1744900091142,6.98080096,1577.9,1577.8,1.26778]
[1744900091335,6.98080096,1577.9,1577.8,3.26168]
[1744900091838,3.20780096,1577.9,1577.8,3.26168]
[1744900092040,3.20780096,1577.9,1577.8,1.26778]
[1744900092436,5.19120096,1577.9,1577.8,1.26778]
[1744900092835,3.20780096,1577.9,1577.8,1.26778]
[1744900093243,5.1912,1577.9,1577.8,1.26778]
[1744900093540,6.45893,1577.9,1577.8,1.26778]
[1744900093842,1.26781,1577.8,1577.7,0.00949968]
[1744900094041,5.07681,1577.8,1577.7,0.00949968]
[1744900095532,10.07681,1577.8,1577.7,0.00949968]
[1744900095737,3.809,1577.8,1577.7,0.00949968]
[1744900095939,5.07681,1577.8,1577.7,1.27738968]
[1744900096141,5.07681,1577.8,1577.7,0.00949968]
[1744900098743,5.07681,1577.8,1577.7,1.27738968]
[1744900098940,5.07681096,1577.8,1577.7,1.27738968]
[1744900099646,1.26805,1577.6,1577.5,1.268]
[1744900099843,3.2078,1577.6,1577.5,1.268]
[1744900100045,5.0898,1577.6,1577.5,1.268]
[1744900100242,6.35777,1577.6,1577.5,1.268]
[1744900100941,6.35777,1577.6,1577.5,3.1754]
[1744900101142,5.0898,1577.6,1577.5,3.1754]
[1744900101443,6.35777,1577.6,1577.5,3.1754]
[1744900101644,5.0898,1577.6,1577.5,3.1754]
[1744900101938,6.35777,1577.6,1577.5,3.1754]
[1744900102249,3.2078,1577.6,1577.5,3.1754]
[1744900102644,4.47577,1577.6,1577.5,3.1754]
[1744900102842,3.2078,1577.6,1577.5,3.1754]
[1744900103547,1.26805,1577.5,1577.4,40.8]
[1744900103847,1.9521,1577.5,1577.4,42.06811]
[1744900104248,3.20780096,1577.6,1577.5,1.26805]
[1744900104449,3.20780096,1577.6,1577.5,3.14305]
[1744900105052,3.20780096,1577.6,1577.5,5.09675]
[1744900105547,0.00949968,1577.7,1577.6,1.26797]
[1744900105741,0.00949968,1577.7,1577.6,3.14297]
[1744900107854,0.00949968,1577.7,1577.6,8.14297]
[1744900108953,0.00949968,1577.7,1577.6,3.14297]
[1744900109855,0.00949968,1577.7,1577.6,6.35077]
[1744900111454,0.00949968,1577.7,1577.6,3.14297]
[1744900111954,3.21729968,1577.7,1577.4,42.7762]
[1744900112157,3.21729968,1577.7,1577.3,1.9257]
[1744900112158,3.8779,1577.6,1577.3,1.9257]
[1744900112452,5.1226,1577.5,1577.4,1.26813]
[1744900112855,6.39065,1577.5,1577.4,1.26813]
[1744900113050,5.1226,1577.5,1577.4,1.26813]
[1744900113454,6.39069,1577.5,1577.3,42.7257]
[1744900113751,1.26813,1577.4,1577.3,1.9257]
[1744900113953,1.9075,1577.4,1577.3,3.19391]
[1744900114257,4.4759,1577.5,1577.3,3.19385]
[1744900114450,1.26813,1577.4,1577.3,3.1939]
[1744900114650,3.17563,1577.4,1577.3,3.1939]
[1744900115657,3.17569,1577.4,1577.3,1.26821]
[1744900116166,1.9075,1577.4,1577.3,1.26821]
[1744900116652,1.9075,1577.4,1577.3,3.18661]
[1744900117558,3.2078,1577.5,1577.4,1.26813]
[1744900117760,3.2078,1577.5,1577.4,3.18653]
[1744900118153,5.172,1577.5,1577.4,3.18653]
[1744900118361,5.172,1577.5,1577.4,1.9184]
[1744900118864,6.44005,1577.5,1577.4,1.9184]
[1744900119263,1.26813,1577.4,1577.3,1.26815]
[1744900119464,3.10493,1577.4,1577.3,3.18855]
[1744900119763,1.8368,1577.4,1577.3,3.18855]
[1744900120365,3.10493,1577.4,1577.3,3.18855]
[1744900121167,1.8368,1577.4,1577.3,3.18855]
[1744900121867,1.26821,1577.3,1577.2,1.26823]
[1744900122065,6.28721,1577.3,1577.2,1.26823]
[1744900122364,1.26829,1577.2,1577.1,1.2683]
[1744900122567,3.09919,1577.2,1577.1,1.2683]
[1744900123469,1.8309,1577.2,1577.1,1.2683]
[1744900123765,1.8309,1577.2,1577.1,3.2336]
[1744900123967,5.019,1577.3,1577.2,1.26829]
[1744900124264,5.019,1577.3,1577.2,3.23359]
[1744900124660,6.28721,1577.3,1577.2,3.23359]
[1744900124865,3.6421,1577.3,1577.2,3.23359]
[1744900125065,3.2078,1577.5,1577.4,1.26813]
[1744900125260,3.2078,1577.5,1577.4,5.95913]
[1744900125570,0.00950064,1577.7,1577.6,1.26797]
[1744900125768,5.41741305,1577.7,1577.6,1.26797]
[1744900125970,7.26761305,1577.7,1577.6,1.26797]
[1744900126175,1.26797,1577.6,1577.5,1.9215]
[1744900126469,6.32597,1577.6,1577.5,1.9215]
[1744900126873,5.058,1577.6,1577.5,3.18955]
[1744900127872,6.32597,1577.6,1577.5,1.9215]
[1744900128371,5.058,1577.6,1577.3,3.7431]
[1744900128569,7.13363,1577.5,1577.3,1.26819]
[1744900128768,1.9347,1577.4,1577.3,1.26819]
[1744900128969,1.9347,1577.4,1577.2,6.5772]
[1744900128970,3.20283,1577.4,1577.2,7.84544]
[1744900129170,1.26827,1577.3,1577.1,1.8185]
[1744900129371,1.9347,1577.3,1577.2,1.26829]
[1744900130461,3.20296,1577.3,1577.1,1.8862]
[1744900130667,3.20296,1577.3,1577.2,1.26829]
[1744900130973,1.26826,1577.3,1577.2,1.26829]
[1744900131367,4.47600096,1577.4,1577.2,1.26829]
[1744900131576,1.26824,1577.3,1577.2,1.26828]
[1744900131776,1.26829,1577.2,1577.1,3.15453]
[1744900131973,1.26827,1577.3,1577.2,1.26829]
[1744900132273,1.26827,1577.3,1577.1,3.15451]
[1744900132575,1.26829,1577.2,1577.1,3.15451]
[1744900133073,6.37814096,1577.4,1577.1,1.8862]
[1744900133369,1.26821,1577.3,1577.2,1.26828]
[1744900133572,1.26829,1577.2,1577.1,3.1545]
[1744900134173,3.2078,1577.2,1577.1,1.26832]
[1744900134775,3.2078,1577.2,1577.1,3.10782]
[1744900135875,3.2078,1577.2,1577.1,1.26832]
[1744900136077,4.47609,1577.2,1577.1,1.26832]
[1744900136670,3.2078,1577.2,1577.1,1.26832]
[1744900136873,4.47609,1577.2,1577.1,1.26832]
[1744900137075,3.2078,1577.2,1577.1,1.26832]
[1744900137870,3.2078,1577.2,1577.1,3.14882]
[1744900138377,3.20780096,1577.2,1577.0,1.26845]
[1744900138565,3.8161,1577.1,1577.0,1.26845]
[1744900138968,5.08447,1577.1,1577.0,1.26845]
[1744900139370,3.20780096,1577.2,1577.1,1.26837]
[1744900139570,3.20780096,1577.2,1576.8,48.66253]
[1744900139771,1.26839,1577.1,1577.0,1.26845]
[1744900140074,1.26838,1577.1,1577.0,1.26841]
[1744900140269,9.6e-07,1577.2,1577.1,1.26837]
[1744900140474,11.32160897,1577.4,1577.3,1.26821]
[1744900140870,11.32160897,1577.4,1577.3,3.14001]
[1744900141177,8.11380897,1577.4,1577.3,3.14001]
[1744900141374,6.17720897,1577.4,1577.3,3.14001]
[1744900141575,9.38500897,1577.4,1577.3,1.26821]
[1744900141776,6.17720897,1577.4,1577.3,3.14001]
[1744900141971,8.11340897,1577.4,1577.3,3.14001]
[1744900142371,12.58933897,1577.4,1577.3,1.8718]
[1744900142566,12.58933897,1577.4,1577.2,1.26823]
[1744900142770,3.20441,1577.3,1577.2,3.14003]
[1744900142976,1.9362,1577.3,1577.2,3.14003]
[1744900143177,3.8359,1577.3,1577.2,1.26823]
[1744900143367,5.10417,1577.3,1577.2,1.26829]
[1744900143768,3.8359,1577.3,1577.2,1.26829]
[1744900143972,5.10411,1577.3,1577.2,1.26829]
[1744900144174,1.26829,1577.2,1577.1,1.26832]
[1744900144376,8.24329,1577.2,1577.0,1.26839]
[1744900144575,1.26854,1576.9,1576.8,1.26859]
[1744900144776,1.26878,1576.6,1576.5,20.90115575]
[1744900145180,1.26878096,1576.6,1576.5,20.90115575]
[1744900145380,7.74738096,1576.6,1576.5,20.90115575]
[1744900145684,3.05638096,1576.6,1576.5,20.90115575]
[1744900146079,7.74738096,1576.6,1576.5,22.17001575]
[1744900146383,6.47860096,1576.6,1576.5,20.90115575]
[1744900146582,6.47860096,1576.6,1576.5,22.17001575]
[1744900146774,12.74738096,1576.6,1576.5,20.90115575]
[1744900147283,7.74738096,1576.6,1576.5,20.90115575]
[1744900147481,7.74738096,1576.6,1576.5,22.17001575]
[1744900147784,6.47860096,1576.6,1576.5,22.17001575]
[1744900147986,7.74738096,1576.6,1576.5,20.90115575]
[1744900148186,12.74738096,1576.6,1576.5,20.90115575]
[1744900148584,1.26894,1576.4,1576.3,1.26896]
[1744900148884,4.47674096,1576.4,1576.3,1.26896]
[1744900149075,3.20780096,1576.4,1576.3,1.26896]
[1744900149281,8.29474096,1576.4,1576.3,1.26896]
[1744900150185,7.02580096,1576.4,1576.3,1.26896]
[1744900150382,8.29474096,1576.4,1576.3,1.26896]
[1744900150583,15.19818096,1576.4,1575.9,1.8252]
[1744900150886,3.2078,1576.2,1576.1,1.26918]
[1744900151281,6.36523,1576.2,1576.0,1.2692]
[1744900151481,3.15752,1576.1,1575.9,1.26931]
[1744900151684,6.36537,1576.0,1575.8,1.26938]
[1744900151879,3.2078,1576.1,1575.8,40.8]
[1744900152079,6.36532,1576.1,1575.9,3.09452]
[1744900152389,1.8883,1576.0,1575.9,3.09454]
[1744900152783,3.15756,1576.0,1575.9,1.8252]
[1744900152988,1.26934,1575.9,1575.7,1.26945]
[1744900153285,5.1428,1575.9,1575.7,1.26948]
[1744900153493,1.935,1575.9,1575.7,1.26945]
[1744900153697,3.18647,1576.0,1575.8,3.06512]
[1744900153897,3.18647,1576.0,1575.9,1.7957]
[1744900154097,3.8522,1576.0,1575.7,1.7957]
[1744900154298,1.26958,1575.6,1575.4,1.26968]
[1744900154494,3.2078,1575.7,1575.5,3.06536]
[1744900154804,1.935,1575.8,1575.7,1.2695]
[1744900155000,3.2078,1575.9,1575.8,1.7957]
[1744900155203,4.47714,1575.9,1575.8,1.7957]
[1744900155504,3.2078,1575.9,1575.8,3.06512]
[1744900155704,3.2078,1575.9,1575.8,8.06512]
[1744900155907,3.21729968,1576.1,1576.0,1.26926]
[1744900156608,3.21729968,1576.1,1576.0,6.26926]
[1744900156609,0.00949968,1576.1,1576.0,6.26926]
[1744900156796,7.33491473,1576.5,1576.1,3.17295]
[1744900156993,4.12711473,1576.5,1576.4,1.26894]
[1744900157206,4.12711473,1576.5,1576.4,5.95894]
[1744900157396,4.12711473,1576.5,1576.4,10.95894]
[1744900157599,4.12711473,1576.5,1576.4,16.60414]
[1744900158611,4.11761505,1576.5,1576.4,57.40414]
[1744900158806,3.52661506,1576.5,1576.4,57.40414]
[1744900159712,0.00949968,1576.6,1576.5,1.26886]
[1744900159911,0.00949968,1576.6,1576.5,3.07776]
[1744900162009,1.93649968,1576.6,1576.5,3.07776]
[1744900163107,5.14429968,1576.6,1576.5,1.8089]
[1744900163309,1.26894,1576.4,1576.3,0.00949968]
[1744900163513,4.47674,1576.4,1576.3,0.00949968]
[1744900164010,6.40084,1576.4,1576.3,0.00949968]
[1744900164517,6.40084,1576.4,1576.3,1.27851968]
[1744900164518,5.1319,1576.4,1576.3,1.27851968]
[1744900165214,7.0181,1576.4,1576.3,1.27851968]
[1744900165512,3.21729968,1576.6,1576.5,1.26886]
[1744900165712,5.10349968,1576.6,1576.5,1.26886]
[1744900166813,3.21729968,1576.6,1576.5,1.26886]
[1744900167215,3.21729968,1576.6,1576.5,3.10066]
[1744900167609,0.00949968,1576.6,1576.5,5.05796]
[1744900167814,0.00949968,1576.6,1576.5,10.05796]
[1744900168113,0.00949968,1576.6,1576.5,11.86766]
[1744900168510,0.00949968,1576.6,1576.5,6.86766]
[1744900168919,0.00949968,1576.6,1576.5,11.86766]
[1744900169917,0.00949968,1576.6,1576.5,6.86766]
[1744900172515,0.00949968,1576.6,1576.3,0.00949968]
[1744900172516,8.21730064,1576.6,1576.3,0.00949968]
[1744900172710,1.26894,1576.4,1576.3,0.00949968]
[1744900173015,1.9092,1576.5,1576.3,1.27851968]
[1744900173207,4.47674,1576.4,1576.3,1.27851968]
[1744900173403,3.2078,1576.4,1576.3,1.27851968]
[1744900173810,3.2078,1576.4,1575.8,17.2958]
[1744900174118,1.2695,1575.7,1575.6,5.12074118]
[1744900174421,9.1663,1575.7,1575.6,5.12074118]
[1744900174618,9.4773,1575.7,1575.6,5.12074118]
[1744900174817,14.1663,1575.7,1575.6,5.12074118]
[1744900175013,5.0431,1575.7,1575.6,5.12074118]
[1744900175616,5.0431,1575.7,1575.6,6.39032118]
[1744900175817,9.7321,1575.7,1575.6,6.39032118]
[1744900176724,9.7321,1575.7,1575.6,5.12074118]
[1744900177024,5.0431,1575.7,1575.6,6.39032118]
[1744900177216,3.2078,1575.7,1575.6,6.39032118]
[1744900177411,3.2078,1575.7,1575.6,8.31392118]
[1744900177822,3.2078,1575.7,1575.6,3.19318]
[1744900178319,5.1763,1575.7,1575.6,3.19318]
[1744900178526,3.2078,1575.7,1575.6,3.19318]
[1744900179225,3.2078,1575.7,1575.6,8.19318]
[1744900179428,0.00949968,1575.8,1575.7,1.2695]
[1744900179620,0.00949968,1575.8,1575.7,3.0651]
[1744900183925,9.83834,1576.2,1575.7,3.0651]
[1744900183926,1.97720096,1576.2,1576.1,1.26918]
[1744900184324,3.87390096,1576.2,1576.1,1.26918]
[1744900186233,9.6e-07,1576.2,1576.1,1.26918]
[1744900186425,0.00949968,1576.3,1576.2,1.2691]
[1744900187328,0.00949968,1576.3,1576.2,3.2032]
[1744900190036,0.00949968,1576.3,1576.2,44.0032]
[1744900192839,0.00949968,1576.3,1576.2,49.0032]
[1744900193143,0.00949968,1576.3,1576.2,49.51209304]
[1744900193337,0.00949968,1576.3,1576.2,49.0032]
[1744900193840,9.68e-06,1576.3,1576.2,49.0032]
[1744900194947,9.68e-06,1576.3,1576.2,49.51305513]
[1744900196349,9.68e-06,1576.3,1576.2,52.72085513]
[1744900197448,9.68e-06,1576.3,1576.2,47.72085513]
[1744900198254,9.68e-06,1576.3,1576.2,49.54565513]
[1744900198752,5.31520968,1576.6,1576.5,1.26886]
[1744900198949,5.31520968,1576.6,1576.5,5.95686]
[1744900199245,5.31520968,1576.6,1576.5,7.89106]
[1744900200446,5.31520968,1576.6,1576.5,11.09886]
[1744900200652,0.77354968,1576.6,1576.5,16.09886]
[1744900200948,4.47631,1577.0,1576.8,1.2686]
[1744900201146,3.80760096,1576.9,1576.6,3.17195]
[1744900201352,1.8945,1576.8,1576.7,1.2687]
[1744900201751,6.8945,1576.8,1576.7,1.2687]
[1744900202054,1.8945,1576.8,1576.7,1.2687]
[1744900202353,11.9559,1576.8,1576.7,1.2687]
[1744900202545,13.22455096,1576.8,1576.4,11.03256]
[1744900202746,1.8945,1576.7,1576.6,1.26878]
[1744900203349,1.8945,1576.7,1576.4,7.86028]
[1744900203550,3.2078,1576.6,1576.5,1.2688]
[1744900203746,1.26893,1576.5,1576.0,3.18263968]
[1744900203952,5.14700096,1576.4,1576.3,1.26902]
[1744900204351,12.10080096,1576.4,1576.3,1.26902]
[1744900204750,8.89300096,1576.4,1576.3,1.26902]
[1744900204949,1.9538,1576.4,1576.3,5.95702]
[1744900205555,1.9538,1576.4,1576.3,46.75702]
[1744900205743,1.9538,1576.4,1576.3,48.60172]
[1744900208054,1.9538,1576.4,1576.3,43.91372]
[1744900208260,1.9538,1576.4,1576.3,42.06902]
[1744900208556,1.9538,1576.4,1576.3,1.26902]
[1744900208557,7.0811,1576.4,1576.3,1.26902]
[1744900209859,3.20780096,1576.8,1576.7,1.2687]
[1744900210154,5.00070096,1576.8,1576.7,1.2687]
[1744900212353,10.00070096,1576.8,1576.7,1.2687]
[1744900212958,1.26871,1576.7,1576.5,1.2688]
[1744900213151,7.0258,1576.6,1576.2,4.688]
[1744900213357,3.2078,1576.4,1576.3,1.26898]
[1744900213865,6.9745,1576.4,1576.3,1.26898]
[1744900214056,9.6e-07,1576.5,1576.4,1.26894]
[1744900214355,9.6e-07,1576.5,1576.4,6.36444]
[1744900214562,1.8943,1576.8,1576.7,1.2687]
[1744900214860,1.8935,1576.8,1576.7,4.43254445]
[1744900215061,1.8935,1576.8,1576.7,5.70124445]
[1744900215257,0.00949968,1576.9,1576.8,1.26861]
[1744900215558,0.00949968,1576.9,1576.8,5.95461]
[1744900215764,0.00949968,1576.9,1576.8,12.84231]
[1744900215963,0.00949968,1576.9,1576.8,7.84231]
[1744900216362,9.68e-06,1576.9,1576.8,11.05011]
[1744900216558,9.68e-06,1576.9,1576.8,16.05011]
[1744900216863,1.8565,1577.3,1577.0,1.26845]
[1744900217160,6.17720897,1577.5,1577.4,1.26813]
[1744900217362,6.17720897,1577.5,1577.4,42.06813]
[1744900217753,6.17720897,1577.5,1577.4,46.75413]
[1744900217959,8.09380897,1577.5,1577.4,46.75413]
[1744900219257,6.17720897,1577.5,1577.4,46.75413]
[1744900219662,6.17720897,1577.5,1577.4,48.56893]
[1744900219857,8.06450897,1577.5,1577.4,48.56893]
[1744900220064,6.17720897,1577.5,1577.4,48.56893]
[1744900220965,11.97780522,1577.6,1577.4,48.56893]
[1744900220966,3.74039968,1577.6,1577.5,1.26805]
[1744900224160,0.00949968,1577.6,1577.5,3.07845]
[1744900224355,9.68e-06,1577.6,1577.5,6.28625]
[1744900224563,9.68e-06,1577.6,1577.5,8.05335]
[1744900224769,9.68e-06,1577.6,1577.5,9.81475]
[1744900225870,9.68e-06,1577.6,1577.5,14.81475]
[1744900226072,9.68e-06,1577.6,1577.5,15.81535055]
[1744900226765,9.6e-07,1578.0,1577.9,1.26773]
[1744900227069,3.2078,1578.1,1578.0,1.26765]
[1744900227269,5.1299,1578.1,1578.0,1.26765]
[1744900227472,1.8925,1578.2,1578.1,1.26757]
[1744900228460,9.39450865,1578.3,1578.2,1.26749]
[1744900228665,0.00949968,1578.3,1578.2,5.95149]
[1744900229268,0.00949968,1578.3,1578.2,9.15929]
[1744900229467,9.68e-06,1578.3,1578.2,5.95149]
[1744900229672,9.68e-06,1578.3,1578.2,1.26749]
[1744900230066,9.68e-06,1578.3,1578.2,3.02849]
[1744900230271,9.68e-06,1578.3,1578.2,11.23629]
[1744900230572,9.68e-06,1578.3,1578.2,3.02849]
[1744900231875,9.68e-06,1578.3,1578.2,6.23629]
[1744900232175,6.37654,1578.2,1577.5,0.51569087]
[1744900232476,3.2078,1577.7,1577.5,1.26801]
[1744900232676,1.8484,1577.6,1577.5,1.26801]
[1744900232973,3.2078,1577.9,1577.5,43.96994]
[1744900233275,3.2078,1577.9,1577.7,1.26787]
[1744900233472,3.2078,1577.9,1577.5,45.79695968]
[1744900233678,3.2078,1577.9,1577.6,1.26797]
[1744900233877,3.2078,1577.9,1577.6,1.26793]
[1744900234075,3.2078,1577.7,1577.5,43.89490968]
[1744900234271,4.4757,1577.7,1577.5,40.80949968]
[1744900234576,4.47573,1577.7,1577.5,40.80949968]
[1744900234780,3.2078,1577.7,1577.5,40.80949968]
[1744900234969,5.0014,1577.7,1577.5,40.80949968]
[1744900235976,1.26797,1577.6,1577.5,0.00949968]
[1744900236377,6.26797,1577.6,1577.5,0.00949968]
[1744900237275,1.26837,1577.1,1577.0,12.57261457]
[1744900237569,4.47617,1577.1,1577.0,12.57261457]
[1744900237778,9.47617,1577.1,1577.0,12.57261457]
[1744900238476,9.47617,1577.1,1577.0,9.66581457]
[1744900238777,1.26845,1577.0,1576.9,16.78048676]
[1744900238982,5.95145,1577.0,1576.9,16.44350133]
[1744900239281,10.95145,1577.0,1576.9,10.63010133]
[1744900240073,10.95145,1577.0,1576.9,0.00949968]
[1744900241078,1.2689,1576.5,1576.2,44.6316]
[1744900241280,4.4767,1576.5,1576.2,42.06903]
[1744900241580,4.4767,1576.5,1576.2,42.06904]
[1744900241772,4.4767,1576.5,1576.2,1.26904]
[1744900241974,1.7748,1576.4,1576.2,1.26904]
[1744900242378,1.7748,1576.4,1576.2,1.26902]
[1744900242580,4.47684,1576.3,1576.1,1.27860968]
[1744900242780,1.7748,1576.2,1576.1,1.27867968]
[1744900243284,0.00949968,1576.4,1576.3,1.26902]
[1744900243984,0.00949968,1576.4,1576.2,3.17314]
[1744900244277,3.2078,1576.3,1576.2,1.26904]
[1744900244484,4.98,1576.3,1576.2,3.17314]
[1744900244881,1.7722,1576.3,1576.2,3.17314]
[1744900245082,0.00949968,1576.4,1576.3,1.26902]
[1744900245681,0.00949968,1576.4,1576.2,3.7887]
[1744900245881,1.78169968,1576.4,1576.3,1.26902]
[1744900246274,1.78169968,1576.4,1576.2,5.05775]
[1744900246478,1.78169968,1576.4,1576.2,5.05773]
[1744900246680,1.78169968,1576.4,1576.2,3.7887]
[1744900246882,1.78169968,1576.4,1576.3,1.26902]
[1744900247085,3.05063968,1576.4,1576.2,3.7887]
[1744900247284,1.78169968,1576.4,1576.3,1.26902]
[1744900247484,1.78169968,1576.4,1576.2,44.5887]
[1744900248082,1.78169968,1576.4,1576.2,42.06906]
[1744900248293,1.78169968,1576.4,1576.3,1.26902]
[1744900248992,3.05063968,1576.4,1576.2,43.94874]
[1744900249193,1.78169968,1576.4,1576.2,43.94874]
[1744900249392,3.2078,1576.3,1576.2,43.94874]
[1744900249700,3.20780096,1576.3,1576.2,1.2691]
[1744900249887,6.37383096,1576.3,1576.1,1.27864968]
[1744900250088,6.37382096,1576.3,1576.1,1.27862968]
[1744900250391,5.10480096,1576.3,1576.1,1.27866968]
[1744900250692,5.10480096,1576.3,1576.2,1.2691]
[1744900253292,5.10480096,1576.3,1576.2,3.1332]
[1744900253894,3.20780096,1576.3,1576.2,3.1332]
[1744900254093,3.20780096,1576.3,1576.2,4.9405]
[1744900254599,3.2078,1576.3,1576.2,4.9405]
[1744900256295,0.00949968,1576.4,1576.3,1.26902]
[1744900256496,0.00949968,1576.4,1576.3,3.04182]
[1744900256884,0.00949968,1576.4,1576.3,7.74982]
[1744900257883,5.00949968,1576.4,1576.3,1.26902]